[Event "ESP-chT Honor Division 2022"]
[Site "Linares"]
[Date "2022.09.18"]
[Round "2.1"]
[White "Shirov, Alexei"]
[Black "Van Foreest, Jorden"]
[Result "0-1"]
[ECO "D41"]
[WhiteElo "2673"]
[BlackElo "2691"]
[Annotator "ChessBase"]
[PlyCount "93"]
[EventDate "2022.09.17"]
[EventType "team-tourn"]
[EventCountry "ESP"]
[SourceTitle "playchess.com"]
[Source "ChessBase"]
[SourceQuality "1"]
[TimeControl "5400+30"]

1. d4 {[%emt 0:00:02]} Nf6 {[%emt 0:00:26]} 2. Nf3 {[%emt 0:00:55]} d5 {[%emt 0:00:22]} 3. c4 {[%emt 0:01:49]} e6 {[%emt 0:00:27]} 4. Nc3 {[%emt 0:01:58]} c5 {[%emt 0:00:09]} 5. cxd5 {[%emt 0:01:29]} cxd4 {[%emt 0:00:58]} 6. Nxd4 {[%emt 0:03:02]} Nxd5 {[%emt 0:00:08]} 7. Bd2 {[%emt 0:10:13]} Be7 {[%emt 0:01:18]} 8. e3 {[%emt 0:06:12]} O-O {[%emt 0:00:45]} 9. Be2 {[%emt 0:03:25]} Nb6 {[%emt 0:06:34]} 10. O-O {[%emt 0:13:30]} e5 {[%emt 0:01:21]} 11. Nb3 {[%emt 0:00:18]} a5 {[%emt 0:03:56]} 12. a4 {[%emt 0:01:17]} Be6 {[%emt 0:03:29]} 13. Bg4 {[%emt 0:31:25]} f5 {[%emt 0:03:44]} 14. Bh3 {[%emt 0:00:17]} Bc4 {[%emt 0:03:28]} 15. e4 {[%emt 0:07:32]} f4 {[%emt 0:01:27]} 16. Nd5 {[%emt 0:03:58]} Nxd5 {[%emt 0:01:27]} 17. Be6+ {[%emt 0:00:15]} Kh8 {[%emt 0:00:10]} 18. exd5 {[%emt 0:01:52]} Bxf1 {[%emt 0:11:01]} 19. Qxf1 {[%emt 0:00:03]} Na6 {[%emt 0:00:06]} 20. Bxa5 {[%emt 0:03:03]} b6 {[%emt 0:00:38]} 21. Bc3 {[%emt 0:00:43]} Nc7 {[%emt 0:01:25]} 22. Bg4 {[%emt 0:04:08]} Bd6 {[%emt 0:06:30]} 23. Bf3 {[%emt 0:00:54]} Qe8 {[%emt 0:01:01]} 24. Nd2 {[%emt 0:00:41]} Rxa4 {[%emt 0:00:27]} 25. Rxa4 {[%emt 0:03:10]} Qxa4 {[%emt 0:00:06]} 26. Nc4 {[%emt 0:00:18]} Bc5 {[%emt 0:07:19]} 27. Nxe5 {[%emt 0:00:37]} Nb5 {[%emt 0:01:46]} 28. Nd7 {[%emt 0:00:41]} Re8 {[%emt 0:02:38]} 29. Nxc5 {[%emt 0:00:13]} bxc5 {[%emt 0:00:06]} 30. h3 {[%emt 0:00:41]} Nxc3 {[%emt 0:00:41]} 31. bxc3 {[%emt 0:00:04]} Qc2 {[%emt 0:00:07]} 32. Qb5 {[%emt 0:00:26]} Re1+ {[%emt 0:00:04]} 33. Kh2 {[%emt 0:00:06]} Qb1 {[%emt 0:00:02]} 34. Qxb1 {[%emt 0:00:32]} Rxb1 {[%emt 0:00:04]} 35. h4 {[%emt 0:01:11]} Kg8 {[%emt 0:02:51]} 36. Kh3 {[%emt 0:00:08]} Rc1 {[%emt 0:00:17]} 37. Kg4 {[%emt 0:00:10]} Rxc3 {[%emt 0:00:28]} 38. Kxf4 {[%emt 0:00:02]} c4 {[%emt 0:01:25]} 39. Be4 {[%emt 0:00:28]} Rc1 {[%emt 0:00:55]} 40. Ke3 {[%emt 0:00:57]} Kf7 {[%emt 0:03:45]} 41. Bxh7 {[%emt 0:01:12]} Rd1 {[%emt 0:00:36]} 42. Be4 {[%emt 0:00:31]} c3 {[%emt 0:00:25]} 43. f3 {[%emt 0:00:07]} Rd2 {[%emt 0:00:32]} 44. f4 {[%emt 0:00:43]} Ke7 {[%emt 0:00:19]} 45. h5 {[%emt 0:00:44]} Kd6 {[%emt 0:00:20]} 46. Bf3 {[%emt 0:00:23]} Rd4 {[%emt 0:00:24]} 47. Kxd4 0-1

[Event "ESP-chT Honor Division 2022"]
[Site "Linares"]
[Date "2022.09.18"]
[Round "2.2"]
[White "Nihal Sarin"]
[Black "Alekseenko, Kirill"]
[Result "1/2-1/2"]
[ECO "C50"]
[WhiteElo "2677"]
[BlackElo "2707"]
[Annotator "ChessBase"]
[PlyCount "76"]
[EventDate "2022.09.17"]
[EventType "team-tourn"]
[EventCountry "ESP"]
[SourceTitle "playchess.com"]
[Source "ChessBase"]
[SourceQuality "1"]
[TimeControl "5400+30"]

1. e4 {[%emt 0:00:58]} e5 {[%emt 0:01:30]} 2. Nf3 {[%emt 0:00:06]} Nc6 {[%emt 0:00:14]} 3. Bc4 {[%emt 0:00:04]} Nf6 {[%emt 0:01:19]} 4. d3 {[%emt 0:00:11]} Bc5 {[%emt 0:02:09]} 5. Nc3 {[%emt 0:00:15]} h6 {[%emt 0:04:51]} 6. h3 {[%emt 0:01:37]} d6 {[%emt 0:01:50]} 7. Na4 {[%emt 0:04:19]} Bb6 {[%emt 0:00:19]} 8. a3 {[%emt 0:04:45]} O-O {[%emt 0:05:50]} 9. O-O {[%emt 0:00:14]} Re8 {[%emt 0:03:15]} 10. b4 {[%emt 0:06:36]} Be6 {[%emt 0:06:41]} 11. Bxe6 {[%emt 0:01:41]} Rxe6 {[%emt 0:00:11]} 12. c4 {[%emt 0:04:15]} Ne7 {[%emt 0:05:14]} 13. Nxb6 {[%emt 0:27:16]} axb6 {[%emt 0:00:31]} 14. a4 {[%emt 0:00:18]} c6 {[%emt 0:14:40]} 15. Re1 {[%emt 0:06:09]} Ng6 {[%emt 0:01:45]} 16. Bd2 {[%emt 0:00:33]} d5 {[%emt 0:03:22]} 17. Qb3 {[%emt 0:10:28]} dxe4 {[%emt 0:10:27]} 18. dxe4 {[%emt 0:00:10]} Rd6 {[%emt 0:00:14]} 19. Be3 {[%emt 0:06:17]} Rd3 {[%emt 0:14:55]} 20. Qc2 {[%emt 0:01:58]} Qd7 {[%emt 0:00:45]} 21. Rad1 {[%emt 0:01:20]} Rxd1 {[%emt 0:02:52]} 22. Rxd1 {[%emt 0:00:04]} Qc7 {[%emt 0:00:47]} 23. c5 {[%emt 0:02:57]} bxc5 {[%emt 0:01:36]} 24. Bxc5 {[%emt 0:00:05]} Rd8 {[%emt 0:00:59]} 25. Rxd8+ {[%emt 0:02:00]} Qxd8 {[%emt 0:00:04]} 26. g3 {[%emt 0:01:17]} Qd7 {[%emt 0:04:11]} 27. Kg2 {[%emt 0:00:54]} Qe6 {[%emt 0:03:05]} 28. Be3 {[%emt 0:04:52]} Nd7 {[%emt 0:00:12]} 29. b5 {[%emt 0:06:01]} cxb5 {[%emt 0:05:07]} 30. axb5 {[%emt 0:00:05]} Nf6 {[%emt 0:00:02]} 31. Qc7 {[%emt 0:02:57]} Qd7 {[%emt 0:02:31]} 32. Qxd7 {[%emt 0:03:09]} Nxd7 {[%emt 0:00:03]} 33. Nd2 {[%emt 0:00:03]} Ngf8 {[%emt 0:00:52]} 34. Nc4 {[%emt 0:00:24]} Ne6 {[%emt 0:00:31]} 35. f4 {[%emt 0:00:04]} f6 {[%emt 0:01:18]} 36. Nd6 {[%emt 0:02:15]} b6 {[%emt 0:02:15]} 37. Nc4 {[%emt 0:01:27]} Nc7 {[%emt 0:00:11]} 38. Nxb6 {[%emt 0:00:43]} Nxb6 {[%emt 0:00:11]} 1/2-1/2

[Event "ESP-chT Honor Division 2022"]
[Site "Linares"]
[Date "2022.09.18"]
[Round "2.3"]
[White "Korobov, Anton"]
[Black "Hakobyan, Aram"]
[Result "1/2-1/2"]
[ECO "A28"]
[WhiteElo "2671"]
[BlackElo "2611"]
[Annotator "ChessBase"]
[PlyCount "63"]
[EventDate "2022.09.17"]
[EventType "team-tourn"]
[EventCountry "ESP"]
[SourceTitle "playchess.com"]
[Source "ChessBase"]
[SourceQuality "1"]
[TimeControl "5400+30"]

1. c4 {[%emt 0:00:04]} Nf6 {[%emt 0:01:24]} 2. Nc3 {[%emt 0:00:08]} e5 {[%emt 0:00:21]} 3. Nf3 {[%emt 0:00:17]} Nc6 {[%emt 0:00:11]} 4. e4 {[%emt 0:00:19]} Bb4 {[%emt 0:00:46]} 5. d3 {[%emt 0:00:25]} d6 {[%emt 0:00:08]} 6. a3 {[%emt 0:00:07]} Bc5 {[%emt 0:00:13]} 7. b4 {[%emt 0:00:12]} Bb6 {[%emt 0:00:16]} 8. Be3 {[%emt 0:00:17]} Bg4 {[%emt 0:00:43]} 9. Be2 {[%emt 0:00:50]} Bxf3 {[%emt 0:00:50]} 10. Bxf3 {[%emt 0:00:25]} Nd4 {[%emt 0:00:05]} 11. O-O {[%emt 0:01:09]} O-O {[%emt 0:00:17]} 12. g3 {[%emt 0:00:50]} a5 {[%emt 0:06:30]} 13. b5 {[%emt 0:01:01]} Nxf3+ {[%emt 0:03:04]} 14. Qxf3 {[%emt 0:00:07]} Bxe3 {[%emt 0:00:13]} 15. Qxe3 {[%emt 0:00:39]} c6 {[%emt 0:01:49]} 16. Rab1 {[%emt 0:05:39]} Re8 {[%emt 0:05:00]} 17. bxc6 {[%emt 0:06:14]} bxc6 {[%emt 0:00:07]} 18. Rb7 {[%emt 0:02:02]} d5 {[%emt 0:01:50]} 19. Qc5 {[%emt 0:16:45]} Qc8 {[%emt 0:23:54]} 20. Rfb1 {[%emt 0:01:06]} d4 {[%emt 0:01:18]} 21. Na4 {[%emt 0:13:16]} Qh3 {[%emt 0:00:09]} 22. f3 {[%emt 0:00:15]} h5 {[%emt 0:00:37]} 23. Nb6 {[%emt 0:05:19]} h4 {[%emt 0:07:12]} 24. Nxa8 {[%emt 0:01:33]} hxg3 {[%emt 0:00:08]} 25. R7b2 {[%emt 0:00:54]} gxh2+ {[%emt 0:02:02]} 26. Rxh2 {[%emt 0:01:08]} Qxf3 {[%emt 0:00:05]} 27. Nc7 {[%emt 0:04:01]} Qe3+ {[%emt 0:08:13]} 28. Kh1 {[%emt 0:02:02]} Qf3+ {[%emt 0:10:02]} 29. Rg2 {[%emt 0:01:30]} Qh3+ {[%emt 0:00:38]} 30. Kg1 {[%emt 0:00:14]} Qe3+ {[%emt 0:00:11]} 31. Kh1 {[%emt 0:00:21]} Qh3+ {[%emt 0:00:19]} 32. Kg1 {[%emt 0:00:05]} 1/2-1/2

[Event "ESP-chT Honor Division 2022"]
[Site "Linares"]
[Date "2022.09.18"]
[Round "2.4"]
[White "Arizmendi Martinez, Julen Luis"]
[Black "Alonso Rosell, Alvar"]
[Result "1/2-1/2"]
[ECO "C78"]
[WhiteElo "2488"]
[BlackElo "2564"]
[Annotator "ChessBase"]
[PlyCount "66"]
[EventDate "2022.09.17"]
[EventType "team-tourn"]
[EventCountry "ESP"]
[SourceTitle "playchess.com"]
[Source "ChessBase"]
[SourceQuality "1"]
[TimeControl "5400+30"]

1. e4 {[%emt 0:00:25]} e5 {[%emt 0:00:08]} 2. Nf3 {[%emt 0:00:15]} Nc6 {[%emt 0:00:05]} 3. Bb5 {[%emt 0:00:35]} a6 {[%emt 0:00:11]} 4. Ba4 {[%emt 0:00:25]} Nf6 {[%emt 0:00:10]} 5. O-O {[%emt 0:01:37]} Bc5 {[%emt 0:00:39]} 6. c3 {[%emt 0:15:55]} O-O {[%emt 0:00:28]} 7. d4 {[%emt 0:05:41]} Ba7 {[%emt 0:00:10]} 8. dxe5 {[%emt 0:26:20]} Nxe4 {[%emt 0:00:08]} 9. Qd5 {[%emt 0:03:11]} Nc5 {[%emt 0:00:06]} 10. Bc2 {[%emt 0:00:10]} Ne7 {[%emt 0:00:45]} 11. Qc4 {[%emt 0:01:56]} d5 {[%emt 0:27:11]} 12. exd6 {[%emt 0:12:01]} Qxd6 {[%emt 0:08:36]} 13. Rd1 {[%emt 0:01:41]} Qc6 {[%emt 0:06:38]} 14. b4 {[%emt 0:11:51]} Ne6 {[%emt 0:04:17]} 15. Na3 {[%emt 0:06:21]} b5 {[%emt 0:12:59]} 16. Qe4 {[%emt 0:06:55]} Qxe4 {[%emt 0:05:34]} 17. Bxe4 {[%emt 0:00:02]} Rb8 {[%emt 0:02:59]} 18. Ng5 {[%emt 0:02:07]} Ng6 {[%emt 0:06:51]} 19. Nc2 {[%emt 0:01:01]} Re8 {[%emt 0:16:33]} 20. Bc6 {[%emt 0:01:09]} Rd8 {[%emt 0:01:00]} 21. Rxd8+ {[%emt 0:00:40]} Nxd8 {[%emt 0:00:02]} 22. Be4 {[%emt 0:00:22]} Bb7 {[%emt 0:02:41]} 23. Be3 {[%emt 0:00:44]} Bxe3 {[%emt 0:01:15]} 24. Nxe3 {[%emt 0:00:02]} h6 {[%emt 0:00:18]} 25. Bxb7 {[%emt 0:00:32]} Nxb7 {[%emt 0:00:07]} 26. Nf3 {[%emt 0:00:41]} Nf4 {[%emt 0:02:21]} 27. Kf1 {[%emt 0:00:14]} a5 {[%emt 0:01:08]} 28. g3 {[%emt 0:00:50]} Ne6 {[%emt 0:00:10]} 29. a4 {[%emt 0:00:41]} axb4 {[%emt 0:00:37]} 30. cxb4 {[%emt 0:00:03]} bxa4 {[%emt 0:00:30]} 31. Rxa4 {[%emt 0:00:07]} Nd6 {[%emt 0:00:40]} 32. Nd5 {[%emt 0:00:50]} c5 {[%emt 0:00:41]} 33. bxc5 {[%emt 0:00:29]} Nxc5 {[%emt 0:00:05]} 1/2-1/2

[Event "ESP-chT Honor Division 2022"]
[Site "Linares"]
[Date "2022.09.18"]
[Round "2.5"]
[White "Henderson de La Fuente, Lance"]
[Black "Sos Andreu, Eric"]
[Result "1-0"]
[ECO "B10"]
[WhiteElo "2504"]
[BlackElo "2358"]
[Annotator "ChessBase"]
[PlyCount "95"]
[EventDate "2022.09.17"]
[EventType "team-tourn"]
[EventCountry "ESP"]
[SourceTitle "playchess.com"]
[Source "ChessBase"]
[SourceQuality "1"]
[TimeControl "5400+30"]

1. e4 {[%emt 0:00:23]} c6 {[%emt 0:00:24]} 2. Nf3 {[%emt 0:00:34]} d5 {[%emt 0:00:10]} 3. d3 {[%emt 0:00:25]} dxe4 {[%emt 0:02:27]} 4. dxe4 {[%emt 0:00:10]} Qxd1+ {[%emt 0:00:05]} 5. Kxd1 {[%emt 0:00:06]} Nf6 {[%emt 0:00:21]} 6. Nbd2 {[%emt 0:00:54]} g6 {[%emt 0:01:08]} 7. Ne1 {[%emt 0:01:06]} Bh6 {[%emt 0:10:17]} 8. f3 {[%emt 0:01:31]} O-O {[%emt 0:00:15]} 9. Nd3 {[%emt 0:02:27]} Rd8 {[%emt 0:03:02]} 10. a4 {[%emt 0:02:36]} a5 {[%emt 0:02:55]} 11. Nc4 {[%emt 0:06:58]} Bxc1 {[%emt 0:00:31]} 12. Kxc1 {[%emt 0:00:07]} Be6 {[%emt 0:07:49]} 13. Ne3 {[%emt 0:10:29]} Na6 {[%emt 0:04:13]} 14. Nf4 {[%emt 0:07:30]} Nc7 {[%emt 0:05:55]} 15. h4 {[%emt 0:08:12]} Nd7 {[%emt 0:08:18]} 16. Bc4 {[%emt 0:12:29]} Nc5 {[%emt 0:10:20]} 17. Rd1 {[%emt 0:10:07]} Rxd1+ {[%emt 0:08:29]} 18. Kxd1 {[%emt 0:00:22]} Bd7 {[%emt 0:00:10]} 19. Nd3 {[%emt 0:04:35]} Nxd3 {[%emt 0:08:14]} 20. cxd3 {[%emt 0:05:12]} e5 {[%emt 0:03:16]} 21. g3 {[%emt 0:06:08]} Kf8 {[%emt 0:00:48]} 22. f4 {[%emt 0:00:53]} f6 {[%emt 0:04:59]} 23. Kd2 {[%emt 0:00:42]} Ke7 {[%emt 0:00:32]} 24. h5 {[%emt 0:02:05]} exf4 {[%emt 0:02:16]} 25. gxf4 {[%emt 0:00:06]} g5 {[%emt 0:00:18]} 26. f5 {[%emt 0:05:18]} Be8 {[%emt 0:03:07]} 27. d4 {[%emt 0:00:53]} Rd8 {[%emt 0:01:12]} 28. Kc3 {[%emt 0:01:25]} b5 {[%emt 0:02:55]} 29. Bb3 {[%emt 0:02:52]} Rd7 {[%emt 0:03:32]} 30. Re1 {[%emt 0:04:04]} Bxh5 {[%emt 0:01:10]} 31. Rh1 {[%emt 0:00:46]} Bf3 {[%emt 0:02:34]} 32. Rxh7+ {[%emt 0:00:07]} Kd8 {[%emt 0:00:09]} 33. Rh8+ {[%emt 0:00:19]} Ke7 {[%emt 0:01:06]} 34. Rh7+ {[%emt 0:00:28]} Kd8 {[%emt 0:00:05]} 35. Rh8+ {[%emt 0:00:05]} Ke7 {[%emt 0:00:03]} 36. e5 {[%emt 0:04:04]} b4+ {[%emt 0:00:30]} 37. Kd3 {[%emt 0:00:39]} fxe5 {[%emt 0:02:09]} 38. f6+ {[%emt 0:00:40]} Kxf6 {[%emt 0:00:29]} 39. Rf8+ {[%emt 0:00:19]} Kg6 {[%emt 0:00:35]} 40. Rxf3 {[%emt 0:00:08]} Rxd4+ {[%emt 0:00:23]} 41. Ke2 {[%emt 0:00:29]} e4 {[%emt 0:01:40]} 42. Bf7+ {[%emt 0:00:46]} Kg7 {[%emt 0:00:33]} 43. Rf5 {[%emt 0:00:01]} Rd8 {[%emt 0:01:16]} 44. Bc4 {[%emt 0:00:09]} Kg6 {[%emt 0:00:38]} 45. Rxa5 {[%emt 0:00:10]} Ne8 {[%emt 0:00:32]} 46. Rc5 {[%emt 0:00:25]} Rd6 {[%emt 0:00:13]} 47. a5 {[%emt 0:00:13]} Nf6 {[%emt 0:00:27]} 48. a6 {[%emt 0:00:53]} 1-0

[Event "ESP-chT Honor Division 2022"]
[Site "Linares"]
[Date "2022.09.18"]
[Round "2.6"]
[White "Garcia Martin, Marta"]
[Black "Cramling, Pia"]
[Result "1-0"]
[ECO "B30"]
[WhiteElo "2325"]
[BlackElo "2468"]
[Annotator "ChessBase"]
[PlyCount "83"]
[EventDate "2022.09.17"]
[EventType "team-tourn"]
[EventCountry "ESP"]
[SourceTitle "playchess.com"]
[Source "ChessBase"]
[SourceQuality "1"]
[TimeControl "5400+30"]

1. e4 {[%emt 0:00:27]} c5 {[%emt 0:00:09]} 2. Nf3 {[%emt 0:00:11]} Nc6 {[%emt 0:00:08]} 3. Bb5 {[%emt 0:00:13]} e6 {[%emt 0:00:21]} 4. O-O {[%emt 0:00:20]} Nge7 {[%emt 0:00:15]} 5. d4 {[%emt 0:00:24]} cxd4 {[%emt 0:00:37]} 6. Nxd4 {[%emt 0:00:07]} Qb6 {[%emt 0:01:32]} 7. Nxc6 {[%emt 0:00:22]} bxc6 {[%emt 0:00:17]} 8. Bd3 {[%emt 0:00:16]} Ng6 {[%emt 0:02:24]} 9. c4 {[%emt 0:00:32]} Bc5 {[%emt 0:00:58]} 10. Nc3 {[%emt 0:00:35]} Qc7 {[%emt 0:03:55]} 11. Na4 {[%emt 0:03:26]} Bd4 {[%emt 0:00:37]} 12. c5 {[%emt 0:00:59]} O-O {[%emt 0:02:15]} 13. Re1 {[%emt 0:01:39]} Rb8 {[%emt 0:10:20]} 14. Be3 {[%emt 0:05:04]} Bxe3 {[%emt 0:13:26]} 15. Rxe3 {[%emt 0:00:19]} Rb4 {[%emt 0:01:06]} 16. Qc2 {[%emt 0:13:44]} e5 {[%emt 0:19:24]} 17. Bc4 {[%emt 0:16:28]} d6 {[%emt 0:05:33]} 18. a3 {[%emt 0:09:34]} Rb8 {[%emt 0:00:05]} 19. g3 {[%emt 0:03:50]} Kh8 {[%emt 0:05:23]} 20. Rd1 {[%emt 0:05:53]} dxc5 {[%emt 0:00:22]} 21. Nxc5 {[%emt 0:00:55]} Qe7 {[%emt 0:00:28]} 22. Bf1 {[%emt 0:00:59]} f5 {[%emt 0:05:04]} 23. exf5 {[%emt 0:00:39]} Bxf5 {[%emt 0:00:05]} 24. Bd3 {[%emt 0:07:00]} Bg4 {[%emt 0:09:56]} 25. Rde1 {[%emt 0:02:39]} Qd6 {[%emt 0:02:05]} 26. Be4 {[%emt 0:07:15]} Ne7 {[%emt 0:10:50]} 27. Qc3 {[%emt 0:17:44]} Qd4 {[%emt 0:01:27]} 28. b4 {[%emt 0:01:10]} Rbd8 {[%emt 0:02:59]} 29. Qxd4 {[%emt 0:01:35]} exd4 {[%emt 0:01:46]} 30. Rd3 {[%emt 0:00:04]} Bf5 {[%emt 0:01:04]} 31. f3 {[%emt 0:01:01]} Ng6 {[%emt 0:00:19]} 32. Bxf5 {[%emt 0:00:26]} Rxf5 {[%emt 0:00:01]} 33. f4 {[%emt 0:00:15]} Rf6 {[%emt 0:01:15]} 34. Re4 {[%emt 0:00:16]} Nf8 {[%emt 0:00:21]} 35. Rexd4 {[%emt 0:00:32]} Rxd4 {[%emt 0:00:20]} 36. Rxd4 {[%emt 0:00:03]} h6 {[%emt 0:00:37]} 37. Nd7 {[%emt 0:01:27]} Nxd7 {[%emt 0:00:27]} 38. Rxd7 {[%emt 0:00:03]} a5 {[%emt 0:00:42]} 39. bxa5 {[%emt 0:00:13]} Rf5 {[%emt 0:00:04]} 40. a6 {[%emt 0:00:36]} Ra5 {[%emt 0:00:04]} 41. a7 {[%emt 0:00:02]} Kh7 {[%emt 0:00:04]} 42. f5 {[%emt 0:00:13]} 1-0

[Event "ESP-chT Honor Division 2022"]
[Site "Linares"]
[Date "2022.09.18"]
[Round "2.7"]
[White "Cheparinov, Ivan"]
[Black "Fedoseev, Vladimir"]
[Result "1-0"]
[ECO "B12"]
[WhiteElo "2686"]
[BlackElo "2685"]
[Annotator "ChessBase"]
[PlyCount "119"]
[EventDate "2022.09.17"]
[EventType "team-tourn"]
[EventCountry "ESP"]
[SourceTitle "playchess.com"]
[Source "ChessBase"]
[SourceQuality "1"]
[TimeControl "5400+30"]

1. e4 {[%emt 0:00:04]} c6 {[%emt 0:00:12]} 2. d4 {[%emt 0:00:04]} d5 {[%emt 0:00:10]} 3. e5 {[%emt 0:00:05]} c5 {[%emt 0:02:30]} 4. Nf3 {[%emt 0:00:12]} cxd4 {[%emt 0:01:19]} 5. Nxd4 {[%emt 0:00:08]} Nc6 {[%emt 0:00:13]} 6. Nxc6 {[%emt 0:00:15]} bxc6 {[%emt 0:00:02]} 7. Bd3 {[%emt 0:00:07]} e6 {[%emt 0:00:09]} 8. Nd2 {[%emt 0:00:52]} Ne7 {[%emt 0:00:42]} 9. O-O {[%emt 0:00:29]} Ng6 {[%emt 0:00:07]} 10. Nf3 {[%emt 0:00:31]} Be7 {[%emt 0:00:07]} 11. g3 {[%emt 0:04:11]} O-O {[%emt 0:01:56]} 12. h4 {[%emt 0:04:12]} f6 {[%emt 0:03:46]} 13. exf6 {[%emt 0:04:09]} Bxf6 {[%emt 0:01:22]} 14. Re1 {[%emt 0:02:23]} Qb6 {[%emt 0:03:42]} 15. h5 {[%emt 0:25:25]} Nh8 {[%emt 0:11:52]} 16. Bf4 {[%emt 0:01:47]} Nf7 {[%emt 0:01:22]} 17. h6 {[%emt 0:08:12]} gxh6 {[%emt 0:20:11]} 18. Qd2 {[%emt 0:01:59]} e5 {[%emt 0:11:04]} 19. Nxe5 {[%emt 0:01:19]} Bxe5 {[%emt 0:00:35]} 20. Rxe5 {[%emt 0:00:03]} Nxe5 {[%emt 0:00:23]} 21. Bxe5 {[%emt 0:00:03]} c5 {[%emt 0:05:14]} 22. Re1 {[%emt 0:04:49]} Rf7 {[%emt 0:02:02]} 23. b4 {[%emt 0:17:17]} Bd7 {[%emt 0:04:44]} 24. bxc5 {[%emt 0:00:17]} Qxc5 {[%emt 0:00:06]} 25. Bd4 {[%emt 0:00:14]} Qd6 {[%emt 0:00:20]} 26. Re5 {[%emt 0:01:56]} Re8 {[%emt 0:06:32]} 27. Rh5 {[%emt 0:00:07]} Qe6 {[%emt 0:01:18]} 28. Kg2 {[%emt 0:02:17]} Kf8 {[%emt 0:07:11]} 29. Rxh6 {[%emt 0:01:57]} Qg4 {[%emt 0:00:03]} 30. Rh4 {[%emt 0:01:24]} Qf3+ {[%emt 0:00:06]} 31. Kh2 {[%emt 0:00:11]} Re6 {[%emt 0:00:18]} 32. Qg5 {[%emt 0:05:53]} Ke8 {[%emt 0:01:23]} 33. Bc5 {[%emt 0:04:12]} Bc6 {[%emt 0:01:24]} 34. Qg8+ {[%emt 0:01:20]} Kd7 {[%emt 0:00:11]} 35. Qb8 {[%emt 0:00:18]} Qf6 {[%emt 0:02:13]} 36. Qxa7+ {[%emt 0:01:29]} Ke8 {[%emt 0:00:11]} 37. Qb8+ {[%emt 0:00:36]} Qd8 {[%emt 0:00:12]} 38. Qxd8+ {[%emt 0:01:40]} Kxd8 {[%emt 0:00:28]} 39. Bd4 {[%emt 0:00:10]} Re1 {[%emt 0:01:16]} 40. Bxh7 {[%emt 0:00:49]} Bb5 {[%emt 0:01:01]} 41. Bg6 {[%emt 0:00:28]} Rf3 {[%emt 0:00:14]} 42. a4 {[%emt 0:01:32]} Bc4 {[%emt 0:04:41]} 43. Rh7 {[%emt 0:00:37]} Re6 {[%emt 0:00:43]} 44. Bh5 {[%emt 0:00:44]} Ra3 {[%emt 0:00:36]} 45. Bg4 {[%emt 0:00:07]} Ra6 {[%emt 0:01:28]} 46. Rd7+ {[%emt 0:02:02]} Ke8 {[%emt 0:00:07]} 47. Rb7 {[%emt 0:00:16]} Ra2 {[%emt 0:01:17]} 48. Bf5 {[%emt 0:00:57]} Rh6+ {[%emt 0:01:41]} 49. Kg2 {[%emt 0:00:02]} Ba6 {[%emt 0:00:21]} 50. Ra7 {[%emt 0:01:16]} Kd8 {[%emt 0:00:18]} 51. Be3 {[%emt 0:00:44]} Rh5 {[%emt 0:00:07]} 52. Bg6 {[%emt 0:00:38]} Be2 {[%emt 0:00:01]} 53. Bxh5 {[%emt 0:00:23]} Bxh5 {[%emt 0:00:08]} 54. c3 {[%emt 0:00:24]} Kc8 {[%emt 0:01:41]} 55. Bd4 {[%emt 0:00:25]} Kb8 {[%emt 0:00:04]} 56. a5 {[%emt 0:00:35]} Bg4 {[%emt 0:00:10]} 57. Rg7 {[%emt 0:00:48]} Bf5 {[%emt 0:00:14]} 58. g4 {[%emt 0:00:12]} Be4+ {[%emt 0:00:09]} 59. Kg3 {[%emt 0:00:03]} Rxa5 {[%emt 0:00:08]} 60. f3 {[%emt 0:00:02]} 1-0